[Event "*** Titled Tuesday Blitz"]
[Site "Chess.com"]
[Date "2021.04.27"]
[Round "3"]
[White "TomasKapitanchuk"]
[Black "nrvignesh"]
[Result "0-1"]
[WhiteElo "2559"]
[BlackElo "2792"]
[TimeControl "180+1"]
[EndTime "10:29:04 PDT"]
[Termination "nrvignesh won by resignation"]

1. e4 {[%clk 0:03:00.9]} 1... c5 {[%clk 0:02:56.5]} 2. Nf3 {[%clk 0:03:01.3]}
2... e6 {[%clk 0:02:56.6]} 3. d4 {[%clk 0:03:00.9]} 3... cxd4 {[%clk 0:02:57.5]}
4. Nxd4 {[%clk 0:03:01.8]} 4... a6 {[%clk 0:02:58]} 5. c4 {[%clk 0:03:02.1]}
5... Qc7 {[%clk 0:02:56.9]} 6. Nc3 {[%clk 0:03:02.3]} 6... Nf6 {[%clk
0:02:56.8]} 7. a3 {[%clk 0:03:02.8]} 7... d6 {[%clk 0:02:56]} 8. Be2 {[%clk
0:03:02.7]} 8... Be7 {[%clk 0:02:55.9]} 9. Be3 {[%clk 0:03:03.2]} 9... b6 {[%clk
0:02:55.7]} 10. O-O {[%clk 0:03:03.5]} 10... Bb7 {[%clk 0:02:56]} 11. f3 {[%clk
0:03:04]} 11... Nbd7 {[%clk 0:02:55.8]} 12. Qd2 {[%clk 0:03:04.5]} 12... Rc8
{[%clk 0:02:55.7]} 13. Rac1 {[%clk 0:03:04.8]} 13... O-O {[%clk 0:02:55.2]} 14.
Rfd1 {[%clk 0:03:05.4]} 14... Qb8 {[%clk 0:02:55.2]} 15. b4 {[%clk 0:03:05.8]}
15... Rfe8 {[%clk 0:02:54.8]} 16. Nb3 {[%clk 0:03:06.3]} 16... Bd8 {[%clk
0:02:36]} 17. Bf4 {[%clk 0:03:06.4]} 17... Ne5 {[%clk 0:02:22.1]} 18. Bxe5
{[%clk 0:03:06.7]} 18... dxe5 {[%clk 0:02:21.4]} 19. c5 {[%clk 0:03:07.3]} 19...
Bc7 {[%clk 0:02:16]} 20. Na4 {[%clk 0:03:02.7]} 20... Bc6 {[%clk 0:02:13.6]} 21.
Nxb6 {[%clk 0:02:19]} 21... Bxb6 {[%clk 0:02:11.8]} 22. cxb6 {[%clk 0:02:19.9]}
22... Ba4 {[%clk 0:02:10.8]} 23. Rxc8 {[%clk 0:01:50.7]} 23... Rxc8 {[%clk
0:02:10]} 24. b7 {[%clk 0:01:44.3]} 24... Re8 {[%clk 0:01:25.5]} 25. Rb1 {[%clk
0:01:09]} 25... Bxb3 {[%clk 0:01:16.4]} 26. Rxb3 {[%clk 0:01:09.9]} 26... Qxb7
{[%clk 0:01:16.6]} 27. Qd6 {[%clk 0:01:02.5]} 27... Qc8 {[%clk 0:00:57.6]} 28.
Qc5 {[%clk 0:00:51.4]} 28... Qd8 {[%clk 0:00:42.5]} 29. Rd3 {[%clk 0:00:50.2]}
29... Qb8 {[%clk 0:00:42.4]} 30. Rd6 {[%clk 0:00:47.3]} 30... Rc8 {[%clk
0:00:35.8]} 31. Rc6 {[%clk 0:00:43]} 31... Rxc6 {[%clk 0:00:34.5]} 32. Qxc6
{[%clk 0:00:43.9]} 32... Qa7+ {[%clk 0:00:27.7]} 33. Kf1 {[%clk 0:00:42.6]}
33... h5 {[%clk 0:00:25.4]} 34. Qc8+ {[%clk 0:00:29.6]} 34... Kh7 {[%clk
0:00:24.6]} 35. Qxa6 {[%clk 0:00:30.5]} 35... Qe3 {[%clk 0:00:24]} 36. Qd3
{[%clk 0:00:30.3]} 36... Qc1+ {[%clk 0:00:22.7]} 37. Kf2 {[%clk 0:00:30.2]}
37... h4 {[%clk 0:00:20.2]} 38. b5 {[%clk 0:00:25.8]} 38... h3 {[%clk
0:00:15.6]} 39. Bf1 {[%clk 0:00:19]} 39... hxg2 {[%clk 0:00:15.1]} 40. Bxg2
{[%clk 0:00:19.9]} 40... Nh5 {[%clk 0:00:14.9]} 41. b6 {[%clk 0:00:18.6]} 41...
Qb2+ {[%clk 0:00:14.3]} 42. Kf1 {[%clk 0:00:11.2]} 42... Nf4 {[%clk 0:00:13.7]}
43. Qe3 {[%clk 0:00:05.3]} 43... Qxg2+ {[%clk 0:00:13.4]} 44. Ke1 {[%clk
0:00:05.7]} 44... Qb2 {[%clk 0:00:13.8]} 45. Kd1 {[%clk 0:00:04.5]} 45... Qb1+
{[%clk 0:00:13.6]} 46. Kd2 {[%clk 0:00:04.5]} 46... Qb2+ {[%clk 0:00:13.6]} 47.
Kd1 {[%clk 0:00:05]} 47... Qb5 {[%clk 0:00:13.6]} 48. a4 {[%clk 0:00:04.9]}
48... Qxa4+ {[%clk 0:00:13.3]} 49. Kd2 {[%clk 0:00:05.4]} 49... Qb4+ {[%clk
0:00:13.3]} 50. Kc2 {[%clk 0:00:05.5]} 50... Kg6 {[%clk 0:00:12.5]} 51. Qg1+
{[%clk 0:00:05.4]} 51... Kf6 {[%clk 0:00:12.5]} 52. h4 {[%clk 0:00:05.6]} 52...
Ke7 {[%clk 0:00:12]} 53. Kc1 {[%clk 0:00:02.3]} 53... Ne2+ {[%clk 0:00:11.1]}
54. Kd1 {[%clk 0:00:02.1]} 54... Nxg1 {[%clk 0:00:11.1]} 55. b7 {[%clk 0:00:03]}
55... Qxb7 {[%clk 0:00:10.7]} 0-1

[Event "*** Titled Tuesday Blitz"]
[Site "Chess.com"]
[Date "2021.04.27"]
[Round "3"]
[White "CraiggoryC"]
[Black "tgpgoat"]
[Result "1-0"]
[WhiteElo "2213"]
[BlackElo "2336"]
[TimeControl "180+1"]
[EndTime "10:29:06 PDT"]
[Termination "CraiggoryC won by checkmate"]

1. e4 {[%clk 0:03:00.9]} 1... c5 {[%clk 0:02:59.4]} 2. Nf3 {[%clk 0:03:00.6]}
2... Nc6 {[%clk 0:02:57.2]} 3. d4 {[%clk 0:03:00.7]} 3... cxd4 {[%clk
0:02:58.1]} 4. Nxd4 {[%clk 0:03:00.7]} 4... e6 {[%clk 0:02:59]} 5. Nc3 {[%clk
0:03:00.5]} 5... Qc7 {[%clk 0:02:59.2]} 6. Be3 {[%clk 0:02:58.2]} 6... a6 {[%clk
0:02:59.2]} 7. Qd2 {[%clk 0:02:58.5]} 7... Nf6 {[%clk 0:02:59.2]} 8. f3 {[%clk
0:02:58.6]} 8... Be7 {[%clk 0:02:58.1]} 9. g4 {[%clk 0:02:56]} 9... b5 {[%clk
0:02:57.7]} 10. Nxc6 {[%clk 0:02:54.9]} 10... dxc6 {[%clk 0:02:55.6]} 11. g5
{[%clk 0:02:48.7]} 11... Nh5 {[%clk 0:02:52.8]} 12. O-O-O {[%clk 0:02:47.6]}
12... Bb7 {[%clk 0:02:52]} 13. Qf2 {[%clk 0:02:43.6]} 13... Rd8 {[%clk
0:02:42.5]} 14. Bh3 {[%clk 0:02:32.7]} 14... O-O {[%clk 0:02:39.8]} 15. Bg4
{[%clk 0:02:31.2]} 15... Nf4 {[%clk 0:02:38.9]} 16. Bb6 {[%clk 0:02:30.6]} 16...
Rxd1+ {[%clk 0:02:34.4]} 17. Rxd1 {[%clk 0:02:30.6]} 17... Qb8 {[%clk
0:02:34.8]} 18. h4 {[%clk 0:02:18]} 18... c5 {[%clk 0:02:09.7]} 19. Rd7 {[%clk
0:02:00.4]} 19... Bc6 {[%clk 0:01:59.8]} 20. Bc7 {[%clk 0:01:52.1]} 20... Qe8
{[%clk 0:01:54.8]} 21. Rxe7 {[%clk 0:01:45.7]} 21... Nd3+ {[%clk 0:01:52.3]} 22.
cxd3 {[%clk 0:01:43.1]} 22... Qxe7 {[%clk 0:01:52.4]} 23. Bb6 {[%clk 0:01:36.7]}
23... Qd7 {[%clk 0:01:43.6]} 24. Bxc5 {[%clk 0:01:32.3]} 24... Rc8 {[%clk
0:01:43]} 25. d4 {[%clk 0:01:32.1]} 25... a5 {[%clk 0:01:42.4]} 26. Kb1 {[%clk
0:01:30.6]} 26... b4 {[%clk 0:01:41.4]} 27. Nd1 {[%clk 0:01:20.6]} 27... Bxe4+
{[%clk 0:01:34.8]} 28. fxe4 {[%clk 0:01:20.7]} 28... Qb5 {[%clk 0:01:30.6]} 29.
Qe2 {[%clk 0:01:12.9]} 29... Qb7 {[%clk 0:01:23.6]} 30. Nf2 {[%clk 0:01:05.1]}
30... a4 {[%clk 0:01:18.6]} 31. Nd3 {[%clk 0:01:01.9]} 31... b3 {[%clk
0:01:17.8]} 32. a3 {[%clk 0:00:57.4]} 32... Qb5 {[%clk 0:01:13]} 33. Ne5 {[%clk
0:00:47.3]} 33... Qb7 {[%clk 0:01:09.4]} 34. Nc4 {[%clk 0:00:42.9]} 34... Qc7
{[%clk 0:01:04.2]} 35. Nd6 {[%clk 0:00:40.4]} 35... Rd8 {[%clk 0:01:04]} 36. e5
{[%clk 0:00:35.7]} 36... Qc6 {[%clk 0:01:03.4]} 37. Bf3 {[%clk 0:00:35]} 37...
Qd7 {[%clk 0:01:03]} 38. Be4 {[%clk 0:00:31.3]} 38... Qe7 {[%clk 0:00:56.2]} 39.
Qh5 {[%clk 0:00:27.7]} 39... g6 {[%clk 0:00:54.9]} 40. Qh6 {[%clk 0:00:27.9]}
40... Qc7 {[%clk 0:00:39.3]} 41. h5 {[%clk 0:00:26.2]} 41... Qd7 {[%clk
0:00:31.4]} 42. hxg6 {[%clk 0:00:25.6]} 42... fxg6 {[%clk 0:00:32.3]} 43. Bxg6
{[%clk 0:00:22.6]} 43... hxg6 {[%clk 0:00:33.2]} 44. Qxg6+ {[%clk 0:00:22.7]}
44... Qg7 {[%clk 0:00:33.4]} 45. Qxe6+ {[%clk 0:00:13.7]} 45... Kh7 {[%clk
0:00:32.2]} 46. Qh3+ {[%clk 0:00:12.8]} 46... Kg8 {[%clk 0:00:30.6]} 47. Qe6+
{[%clk 0:00:12.6]} 47... Kh7 {[%clk 0:00:30.7]} 48. g6+ {[%clk 0:00:12.1]} 48...
Qxg6+ {[%clk 0:00:24.6]} 49. Qxg6+ {[%clk 0:00:12.7]} 49... Kxg6 {[%clk
0:00:25.1]} 50. e6 {[%clk 0:00:11.2]} 50... Rh8 {[%clk 0:00:24.3]} 51. Kc1
{[%clk 0:00:10.5]} 51... Kf6 {[%clk 0:00:22.1]} 52. d5 {[%clk 0:00:10.3]} 52...
Rh1+ {[%clk 0:00:20]} 53. Kd2 {[%clk 0:00:10.6]} 53... Rh5 {[%clk 0:00:19.6]}
54. Ne4+ {[%clk 0:00:09.1]} 54... Kg7 {[%clk 0:00:16.3]} 55. d6 {[%clk
0:00:07.5]} 55... Rh2+ {[%clk 0:00:13.6]} 56. Kc3 {[%clk 0:00:07.5]} 56... Rc2+
{[%clk 0:00:13.5]} 57. Kb4 {[%clk 0:00:06.9]} 57... Rxb2 {[%clk 0:00:13.7]} 58.
Bd4+ {[%clk 0:00:07.2]} 58... Kg6 {[%clk 0:00:12.7]} 59. Bxb2 {[%clk 0:00:07.4]}
59... Kf5 {[%clk 0:00:13.6]} 60. d7 {[%clk 0:00:07.6]} 60... Kxe6 {[%clk
0:00:14.5]} 61. d8=Q {[%clk 0:00:08.1]} 61... Kf5 {[%clk 0:00:15.2]} 62. Qd3
{[%clk 0:00:08.2]} 62... Kg4 {[%clk 0:00:14.9]} 63. Qb5 {[%clk 0:00:09.1]} 63...
Kf3 {[%clk 0:00:15.6]} 64. Qxa4 {[%clk 0:00:09.9]} 64... Ke2 {[%clk 0:00:16.4]}
65. Qxb3 {[%clk 0:00:10.3]} 65... Kf1 {[%clk 0:00:16.1]} 66. a4 {[%clk
0:00:10.8]} 66... Kg2 {[%clk 0:00:17]} 67. a5 {[%clk 0:00:11.4]} 67... Kf1
{[%clk 0:00:15.2]} 68. a6 {[%clk 0:00:12.3]} 68... Ke2 {[%clk 0:00:15.9]} 69.
Nd6 {[%clk 0:00:13.2]} 69... Kf1 {[%clk 0:00:16.2]} 70. Nc8 {[%clk 0:00:14.1]}
70... Ke2 {[%clk 0:00:17.1]} 71. a7 {[%clk 0:00:15]} 71... Kf1 {[%clk
0:00:17.6]} 72. a8=Q {[%clk 0:00:15.9]} 72... Ke2 {[%clk 0:00:17.9]} 73. Qe4+
{[%clk 0:00:16]} 73... Kf1 {[%clk 0:00:17.8]} 74. Qbf3+ {[%clk 0:00:16.1]} 74...
Kg1 {[%clk 0:00:17.7]} 75. Qg2# {[%clk 0:00:16.4]} 1-0

[Event "*** Titled Tuesday Blitz"]
[Site "Chess.com"]
[Date "2021.04.27"]
[Round "3"]
[White "Bigfish1995"]
[Black "DarkAlekhine"]
[Result "1-0"]
[WhiteElo "2990"]
[BlackElo "2681"]
[TimeControl "180+1"]
[EndTime "10:29:11 PDT"]
[Termination "Bigfish1995 won by resignation"]

1. d4 {[%clk 0:02:58.5]} 1... Nf6 {[%clk 0:02:59.9]} 2. Nf3 {[%clk 0:02:57.3]}
2... g6 {[%clk 0:02:58.1]} 3. Bg5 {[%clk 0:02:55.9]} 3... Bg7 {[%clk 0:02:57.9]}
4. Nbd2 {[%clk 0:02:56]} 4... d6 {[%clk 0:02:57.6]} 5. e4 {[%clk 0:02:55.5]}
5... O-O {[%clk 0:02:57.5]} 6. c3 {[%clk 0:02:55.7]} 6... c5 {[%clk 0:02:57.4]}
7. dxc5 {[%clk 0:02:53.3]} 7... dxc5 {[%clk 0:02:58.3]} 8. Bc4 {[%clk
0:02:53.5]} 8... h6 {[%clk 0:02:55.6]} 9. Be3 {[%clk 0:02:52.2]} 9... b6 {[%clk
0:02:52.1]} 10. h3 {[%clk 0:02:51.3]} 10... Bb7 {[%clk 0:02:51.5]} 11. Qc2
{[%clk 0:02:50.5]} 11... Nc6 {[%clk 0:02:49.2]} 12. Rd1 {[%clk 0:02:26.4]} 12...
Qc7 {[%clk 0:02:48.9]} 13. O-O {[%clk 0:02:21.8]} 13... Nh5 {[%clk 0:02:43.3]}
14. Rfe1 {[%clk 0:02:13.7]} 14... Rad8 {[%clk 0:02:40.8]} 15. a3 {[%clk
0:02:10.6]} 15... e6 {[%clk 0:02:31.7]} 16. Bf1 {[%clk 0:01:55.6]} 16... Rd7
{[%clk 0:02:11.2]} 17. Nc4 {[%clk 0:01:40.9]} 17... Rfd8 {[%clk 0:02:04.4]} 18.
Rxd7 {[%clk 0:01:40.6]} 18... Rxd7 {[%clk 0:02:05.3]} 19. a4 {[%clk 0:01:19.2]}
19... Rd8 {[%clk 0:01:14.9]} 20. Qc1 {[%clk 0:01:12.9]} 20... Kh7 {[%clk
0:01:14.1]} 21. g4 {[%clk 0:01:11.1]} 21... Nf6 {[%clk 0:01:14]} 22. Bf4 {[%clk
0:01:11.4]} 22... Qe7 {[%clk 0:01:09.2]} 23. Bg2 {[%clk 0:01:11.2]} 23... Ba6
{[%clk 0:00:46.6]} 24. Nfe5 {[%clk 0:01:11.1]} 24... Nxe5 {[%clk 0:00:44.9]} 25.
Nxe5 {[%clk 0:01:12]} 25... Bb7 {[%clk 0:00:40.9]} 26. Bg3 {[%clk 0:01:09.6]}
26... Nd7 {[%clk 0:00:30.3]} 27. Nc4 {[%clk 0:01:09.4]} 27... Nf6 {[%clk
0:00:22.9]} 28. Nd6 {[%clk 0:01:01.1]} 28... Bc6 {[%clk 0:00:21.1]} 29. e5
{[%clk 0:00:59.3]} 29... Nd5 {[%clk 0:00:19.6]} 30. Qc2 {[%clk 0:00:57.4]} 30...
Qd7 {[%clk 0:00:12.7]} 31. Ra1 {[%clk 0:00:51.6]} 31... Kg8 {[%clk 0:00:12.4]}
32. h4 {[%clk 0:00:49.8]} 32... Qe7 {[%clk 0:00:12.1]} 33. a5 {[%clk 0:00:46.2]}
33... b5 {[%clk 0:00:11.8]} 34. Qe2 {[%clk 0:00:44.9]} 34... c4 {[%clk
0:00:11.9]} 35. Be4 {[%clk 0:00:39.1]} 35... a6 {[%clk 0:00:11.5]} 36. h5 {[%clk
0:00:34.7]} 36... g5 {[%clk 0:00:11.5]} 37. Rd1 {[%clk 0:00:31.3]} 37... Qc7
{[%clk 0:00:09]} 38. Qf3 {[%clk 0:00:29.3]} 38... Rf8 {[%clk 0:00:06.9]} 39. Ra1
{[%clk 0:00:22.7]} 39... Qd7 {[%clk 0:00:06.3]} 40. Qg2 {[%clk 0:00:20.2]} 40...
f6 {[%clk 0:00:05.9]} 41. exf6 {[%clk 0:00:20.1]} 41... Rxf6 {[%clk 0:00:06]}
42. Rd1 {[%clk 0:00:20.6]} 42... Qe7 {[%clk 0:00:05]} 43. Nf5 {[%clk 0:00:19.9]}
43... Qf8 {[%clk 0:00:03.2]} 44. Nd4 {[%clk 0:00:19.5]} 44... Bb7 {[%clk
0:00:02.4]} 45. Nxe6 {[%clk 0:00:19.5]} 45... Rxe6 {[%clk 0:00:02.7]} 46. Bxd5
{[%clk 0:00:20.3]} 46... Bxd5 {[%clk 0:00:03.3]} 47. Qxd5 {[%clk 0:00:21.1]}
47... Qf7 {[%clk 0:00:03.7]} 48. Kg2 {[%clk 0:00:21.3]} 48... Kh8 {[%clk
0:00:03.5]} 49. Qa8+ {[%clk 0:00:20.6]} 49... Re8 {[%clk 0:00:03]} 50. Qxa6
{[%clk 0:00:19.8]} 50... Rf8 {[%clk 0:00:02.6]} 51. Qc6 {[%clk 0:00:18.9]} 51...
b4 {[%clk 0:00:02.7]} 52. Rd7 {[%clk 0:00:18.4]} 52... Qf6 {[%clk 0:00:02]} 53.
Qxf6 {[%clk 0:00:18.1]} 53... Bxf6 {[%clk 0:00:02.9]} 54. cxb4 {[%clk
0:00:18.2]} 54... Bxb2 {[%clk 0:00:02.8]} 55. Rc7 {[%clk 0:00:18.8]} 55... c3
{[%clk 0:00:03.3]} 56. Be5+ {[%clk 0:00:18.8]} 56... Kg8 {[%clk 0:00:03.4]} 57.
Rg7+ {[%clk 0:00:17.6]} 57... Kh8 {[%clk 0:00:03.9]} 58. Rxg5+ {[%clk
0:00:17.9]} 58... Kh7 {[%clk 0:00:04.4]} 59. Rg7+ {[%clk 0:00:18.2]} 59... Kh8
{[%clk 0:00:05]} 60. Rf7+ {[%clk 0:00:17.1]} 60... Kg8 {[%clk 0:00:05.5]} 61.
Rxf8+ {[%clk 0:00:17.6]} 61... Kxf8 {[%clk 0:00:06.4]} 62. a6 {[%clk 0:00:18.1]}
62... Ke7 {[%clk 0:00:07]} 63. a7 {[%clk 0:00:18.4]} 1-0

[Event "*** Titled Tuesday Blitz"]
[Site "Chess.com"]
[Date "2021.04.27"]
[Round "3"]
[White "dozer80"]
[Black "Anton_Demchenko"]
[Result "0-1"]
[WhiteElo "2657"]
[BlackElo "2923"]
[TimeControl "180+1"]
[EndTime "10:29:11 PDT"]
[Termination "Anton_Demchenko won by resignation"]

1. e4 {[%clk 0:03:00.9]} 1... e5 {[%clk 0:02:59.7]} 2. Nc3 {[%clk 0:02:59.9]}
2... Nf6 {[%clk 0:02:59.3]} 3. g3 {[%clk 0:02:59.8]} 3... d5 {[%clk 0:02:58.9]}
4. exd5 {[%clk 0:03:00.1]} 4... Nxd5 {[%clk 0:02:59.8]} 5. Bg2 {[%clk
0:03:00.5]} 5... Nxc3 {[%clk 0:03:00.1]} 6. bxc3 {[%clk 0:03:00.9]} 6... Bd6
{[%clk 0:03:00.6]} 7. Nf3 {[%clk 0:03:00.9]} 7... O-O {[%clk 0:03:01]} 8. O-O
{[%clk 0:03:01.2]} 8... Re8 {[%clk 0:03:01.6]} 9. d3 {[%clk 0:03:00.3]} 9... Nd7
{[%clk 0:03:00.6]} 10. Re1 {[%clk 0:03:00]} 10... Rb8 {[%clk 0:02:58.9]} 11. a4
{[%clk 0:02:18]} 11... a5 {[%clk 0:02:51.5]} 12. d4 {[%clk 0:02:10.5]} 12...
exd4 {[%clk 0:02:44.1]} 13. cxd4 {[%clk 0:02:10.7]} 13... b6 {[%clk 0:02:40.1]}
14. Bg5 {[%clk 0:02:03.1]} 14... Rxe1+ {[%clk 0:02:26.7]} 15. Qxe1 {[%clk
0:02:02.5]} 15... Qf8 {[%clk 0:02:27]} 16. Bh3 {[%clk 0:01:46.1]} 16... h6
{[%clk 0:02:21.2]} 17. Bd2 {[%clk 0:01:35.4]} 17... Nf6 {[%clk 0:02:21]} 18.
Bxc8 {[%clk 0:01:33.7]} 18... Rxc8 {[%clk 0:02:21.1]} 19. Qf1 {[%clk 0:01:33.9]}
19... Re8 {[%clk 0:02:16.6]} 20. Re1 {[%clk 0:01:32.9]} 20... Re7 {[%clk
0:02:12.5]} 21. Nh4 {[%clk 0:01:26.6]} 21... Qe8 {[%clk 0:02:09.7]} 22. Rxe7
{[%clk 0:01:25]} 22... Bxe7 {[%clk 0:02:09.6]} 23. Qe1 {[%clk 0:01:15.6]} 23...
Kf8 {[%clk 0:02:06.8]} 24. Nf5 {[%clk 0:01:13.9]} 24... Bd8 {[%clk 0:02:01]} 25.
Qxe8+ {[%clk 0:00:59.6]} 25... Nxe8 {[%clk 0:02:01.9]} 26. d5 {[%clk 0:00:59.1]}
26... Bg5 {[%clk 0:01:40.8]} 27. f4 {[%clk 0:00:56.5]} 27... Bf6 {[%clk
0:01:38]} 28. Kf2 {[%clk 0:00:54.5]} 28... h5 {[%clk 0:01:37.1]} 29. Ke2 {[%clk
0:00:53.6]} 29... g6 {[%clk 0:01:37]} 30. Ne3 {[%clk 0:00:52.5]} 30... Ke7
{[%clk 0:01:35.8]} 31. h3 {[%clk 0:00:50.3]} 31... Bd4 {[%clk 0:01:30.2]} 32.
Nc4 {[%clk 0:00:48.9]} 32... f5 {[%clk 0:01:02.7]} 33. Ne5 {[%clk 0:00:42.7]}
33... Kf6 {[%clk 0:00:59]} 34. Nc6 {[%clk 0:00:40.2]} 34... Bb2 {[%clk
0:00:41.2]} 35. Kd3 {[%clk 0:00:33.9]} 35... Nd6 {[%clk 0:00:38.5]} 36. c3
{[%clk 0:00:33]} 36... Ne4 {[%clk 0:00:31.9]} 37. Be1 {[%clk 0:00:33]} 37... Ba3
{[%clk 0:00:30.3]} 38. g4 {[%clk 0:00:31.6]} 38... Nc5+ {[%clk 0:00:26]} 39. Kc4
{[%clk 0:00:24.9]} 39... fxg4 {[%clk 0:00:25.4]} 40. hxg4 {[%clk 0:00:25.8]}
40... hxg4 {[%clk 0:00:25.8]} 41. Nd4 {[%clk 0:00:24.1]} 41... Bc1 {[%clk
0:00:19.5]} 42. Bh4+ {[%clk 0:00:18.5]} 42... Kf7 {[%clk 0:00:19.9]} 43. Ne2
{[%clk 0:00:15.4]} 43... Be3 {[%clk 0:00:16.4]} 44. Bd8 {[%clk 0:00:14.5]} 44...
Nxa4 {[%clk 0:00:07.5]} 45. Bxc7 {[%clk 0:00:14.3]} 45... Nb2+ {[%clk
0:00:08.1]} 46. Kb5 {[%clk 0:00:14.1]} 46... a4 {[%clk 0:00:08.6]} 47. Bd6
{[%clk 0:00:14.5]} 47... Bc5 {[%clk 0:00:07.9]} 48. Bxc5 {[%clk 0:00:14.7]}
48... bxc5 {[%clk 0:00:08.8]} 49. Kc6 {[%clk 0:00:15.3]} 49... a3 {[%clk
0:00:09.1]} 50. d6 {[%clk 0:00:15.7]} 50... a2 {[%clk 0:00:08.7]} 51. d7 {[%clk
0:00:16.1]} 51... a1=Q {[%clk 0:00:07.7]} 52. d8=Q {[%clk 0:00:16.4]} 52... Qa6+
{[%clk 0:00:07.6]} 53. Kxc5 {[%clk 0:00:16.6]} 53... Qxe2 {[%clk 0:00:08.1]} 54.
Qd7+ {[%clk 0:00:16.9]} 54... Qe7+ {[%clk 0:00:07.9]} 55. Qxe7+ {[%clk
0:00:16.2]} 55... Kxe7 {[%clk 0:00:08.8]} 56. Kd4 {[%clk 0:00:16.3]} 56... Kd6
{[%clk 0:00:06.7]} 57. Ke4 {[%clk 0:00:15.7]} 57... Ke6 {[%clk 0:00:07.3]} 58.
Ke3 {[%clk 0:00:12.9]} 58... Kf5 {[%clk 0:00:07.9]} 59. Kf2 {[%clk 0:00:10.5]}
59... Kxf4 {[%clk 0:00:08.3]} 60. Kg2 {[%clk 0:00:11.4]} 0-1

[Event "*** Titled Tuesday Blitz"]
[Site "Chess.com"]
[Date "2021.04.27"]
[Round "3"]
[White "Fandorine"]
[Black "MaevskiyNikolay"]
[Result "1-0"]
[WhiteElo "2901"]
[BlackElo "2473"]
[TimeControl "180+1"]
[EndTime "10:29:11 PDT"]
[Termination "Fandorine won by checkmate"]

1. e4 {[%clk 0:03:00.9]} 1... c6 {[%clk 0:02:55.6]} 2. Nc3 {[%clk 0:02:55]} 2...
d5 {[%clk 0:02:55.5]} 3. Qf3 {[%clk 0:02:55.3]} 3... d4 {[%clk 0:02:47.7]} 4.
Bc4 {[%clk 0:02:51.5]} 4... e6 {[%clk 0:02:42.2]} 5. Nce2 {[%clk 0:02:51.4]}
5... c5 {[%clk 0:02:42.2]} 6. Qg3 {[%clk 0:02:50.6]} 6... Nc6 {[%clk 0:02:38.8]}
7. Nf3 {[%clk 0:02:50.9]} 7... a6 {[%clk 0:02:31.5]} 8. a4 {[%clk 0:02:46.1]}
8... Nf6 {[%clk 0:02:25.7]} 9. d3 {[%clk 0:02:46.1]} 9... g6 {[%clk 0:02:12.4]}
10. h4 {[%clk 0:02:30.9]} 10... Nh5 {[%clk 0:02:08.6]} 11. Qh2 {[%clk 0:02:30]}
11... Nf6 {[%clk 0:01:32.9]} 12. Bf4 {[%clk 0:02:23.3]} 12... Be7 {[%clk
0:01:21.3]} 13. a5 {[%clk 0:02:19.9]} 13... h5 {[%clk 0:01:15.4]} 14. Qg3 {[%clk
0:02:15.7]} 14... Ng4 {[%clk 0:01:07.5]} 15. Bg5 {[%clk 0:02:10.1]} 15... Bxg5
{[%clk 0:00:55.2]} 16. Nxg5 {[%clk 0:02:10.2]} 16... Nxa5 {[%clk 0:00:50]} 17.
f3 {[%clk 0:02:05.8]} 17... Nxc4 {[%clk 0:00:38.2]} 18. fxg4 {[%clk 0:02:04.6]}
18... Ne3 {[%clk 0:00:37.1]} 19. gxh5 {[%clk 0:01:36.6]} 19... Rxh5 {[%clk
0:00:31.7]} 20. Rc1 {[%clk 0:01:10.1]} 20... Qe7 {[%clk 0:00:30.4]} 21. c3
{[%clk 0:01:08.1]} 21... e5 {[%clk 0:00:27]} 22. cxd4 {[%clk 0:01:06]} 22...
exd4 {[%clk 0:00:27.2]} 23. b4 {[%clk 0:01:00.7]} 23... b6 {[%clk 0:00:26.2]}
24. bxc5 {[%clk 0:00:45.2]} 24... bxc5 {[%clk 0:00:26.4]} 25. Rb1 {[%clk
0:00:45.6]} 25... Rh8 {[%clk 0:00:16]} 26. e5 {[%clk 0:00:28.9]} 26... Kf8
{[%clk 0:00:14.5]} 27. Nf4 {[%clk 0:00:23.9]} 27... Kg7 {[%clk 0:00:11.2]} 28.
h5 {[%clk 0:00:19.8]} 28... Bf5 {[%clk 0:00:10.5]} 29. h6+ {[%clk 0:00:17.9]}
29... Kf8 {[%clk 0:00:08.1]} 30. e6 {[%clk 0:00:15.1]} 30... f6 {[%clk
0:00:07.3]} 31. Nf3 {[%clk 0:00:13.1]} 31... g5 {[%clk 0:00:07.3]} 32. Nxg5
{[%clk 0:00:05.9]} 32... fxg5 {[%clk 0:00:07.3]} 33. Nd5 {[%clk 0:00:03.6]}
33... Qxe6 {[%clk 0:00:07.4]} 34. Nc7 {[%clk 0:00:02.8]} 34... Qe7 {[%clk
0:00:06.6]} 35. Nd5 {[%clk 0:00:02.7]} 35... Qe6 {[%clk 0:00:05.6]} 36. Nc7
{[%clk 0:00:02.8]} 36... Qd7 {[%clk 0:00:05.4]} 37. Qe5 {[%clk 0:00:01.6]} 37...
Kf7 {[%clk 0:00:05.1]} 38. Qxc5 {[%clk 0:00:01.5]} 38... Kg6 {[%clk 0:00:04.7]}
39. Rb6+ {[%clk 0:00:01.5]} 39... Kh7 {[%clk 0:00:04.5]} 40. Rb7 {[%clk
0:00:02.2]} 40... Rhe8 {[%clk 0:00:03.3]} 41. Kd2 {[%clk 0:00:02.7]} 41... Nd5
{[%clk 0:00:03.1]} 42. Nxd5 {[%clk 0:00:02.2]} 42... Qxb7 {[%clk 0:00:03.5]} 43.
Rb1 {[%clk 0:00:01.9]} 43... Kg6 {[%clk 0:00:03.9]} 44. Rxb7 {[%clk 0:00:01.4]}
44... Re6 {[%clk 0:00:03.5]} 45. Rb6 {[%clk 0:00:02.3]} 45... Rxb6 {[%clk
0:00:03.4]} 46. Qxb6+ {[%clk 0:00:03.2]} 46... Kh5 {[%clk 0:00:03.5]} 47. Nf6+
{[%clk 0:00:03.1]} 47... Kg6 {[%clk 0:00:03.4]} 48. Qxd4 {[%clk 0:00:04]} 48...
Kxh6 {[%clk 0:00:02.6]} 49. Nd5 {[%clk 0:00:04.9]} 49... Bg6 {[%clk 0:00:02.7]}
50. g4 {[%clk 0:00:05.6]} 50... Rd8 {[%clk 0:00:02.7]} 51. Qe5 {[%clk
0:00:05.2]} 51... Kh7 {[%clk 0:00:02.5]} 52. Qe7+ {[%clk 0:00:04.9]} 52... Kh6
{[%clk 0:00:02.3]} 53. Qxd8 {[%clk 0:00:05.8]} 53... Bxd3 {[%clk 0:00:02.2]} 54.
Qh8+ {[%clk 0:00:05.3]} 54... Bh7 {[%clk 0:00:02]} 55. Qf6+ {[%clk 0:00:05.6]}
55... Bg6 {[%clk 0:00:02.3]} 56. Ne7 {[%clk 0:00:06.1]} 56... Kh7 {[%clk
0:00:02.7]} 57. Qxg6+ {[%clk 0:00:07]} 57... Kh8 {[%clk 0:00:03.6]} 58. Qg8#
{[%clk 0:00:07.9]} 1-0